fUSD/lending_fUSD_20250119
["ID","MTS","AMOUNT","RATE_DAILY","PERIOD"]
[349571991,1737301858810,-241.12540838,0.00021,2]
[349571992,1737301858819,-160.75027226,0.00021,2]
[349571993,1737301858829,-245.40325262,0.00021,2]
[349571994,1737301858838,-191231.97373533,0.00021,15]
[349571995,1737301858863,-10325.18041122,0.00021,15]
[349571996,1737301858881,-500.0,0.00019,2]
[349571997,1737301858890,-1157.11737473,0.00021,15]
[349571998,1737301859048,-4858.11589993,0.00021,15]
[349571999,1737301859059,-5809.64591392,0.00021,15]
[349572000,1737301859071,-6064.0000005,0.00021,15]
[349572008,1737302431207,150.0,0.00022348,120]
[349572011,1737302669045,-5027.04,0.00020414,30]
[349572012,1737302732713,150.0,0.00022388,120]
[349572013,1737302758107,-550.0,0.00015,2]
[349572014,1737302758128,-623.01,0.00016348,2]
[349572015,1737302758150,-600.0,0.00017,2]
[349572016,1737302758175,-193.26,0.00018201,2]
[349572017,1737302758197,-309.63,0.00018206,2]
[349572018,1737302758218,-214.29824118,0.00018213,2]
[349572020,1737302805991,4783.52,0.00018482,30]
[349572022,1737302923842,-202.3245628,0.0002301,120]
[349572023,1737302923895,-200.0,0.00024,120]
[349572025,1737302938784,-150.0,0.0002459,120]
[349572026,1737302938815,-284.23,0.0002468,120]
[349572027,1737302938843,-159.13,0.0002469,120]
[349572028,1737302938871,-150.5,0.0002469,120]
[349572029,1737302938899,-189.48,0.0002469,120]
[349572030,1737302938930,-268.35,0.00024701,120]
[349572031,1737302938962,-34954.20997346,0.0002496,120]
[349572032,1737302938992,-150.0,0.00024996,120]
[349572058,1737303031703,-35.70175882,0.00018213,2]
[349572059,1737303031713,-500.0,0.00018229,2]
[349572060,1737303031723,-1099.76506697,0.00018236,2]
[349572061,1737303031734,-348.60001388,0.00018236,2]
[349572062,1737303031756,-1727.51491915,0.00018236,2]
[349572063,1737303031765,-3238.37808085,0.00018239,2]
[349572064,1737303031811,-1569.56510515,0.00018239,2]
[349572065,1737303031822,-412.40818989,0.00018239,2]
[349572066,1737303031834,-5698.70911555,0.00018239,2]
[349572067,1737303032025,-11267.85068612,0.00018239,2]
[349572068,1737303032037,-1713.08882244,0.00018239,2]
[349572069,1737303032047,-190.9152267,0.0001825,2]
[349572070,1737303032058,-491.255009,0.0001825,2]
[349572071,1737303032127,-317.8297643,0.0001825,2]
[349572072,1737303032136,-945.8,0.0001826,2]
[349572073,1737303032147,-2096.89,0.00018313,2]
[349572074,1737303032157,-167.71,0.00018368,2]
[349572075,1737303032166,-200.0,0.00018409,2]
[349572076,1737303032176,-500.0,0.00018571,2]
[349572077,1737303032185,-623.01,0.00018612,2]
[349572078,1737303032195,-522.61,0.00018654,2]
[349572079,1737303032205,-178.31,0.00018757,2]
[349572080,1737303032226,-176.63,0.00018797,2]
[349572081,1737303032235,-945.8,0.00018935,2]
[349572082,1737303032244,-616.041906,0.00018978,2]
[349572083,1737303032254,-163.23,0.00018986,2]
[349572084,1737303032263,-163.23,0.00018998,2]
[349572085,1737303032272,-650.0,0.00019,2]
[349572086,1737303032281,-163.23,0.0001901,2]
[349572087,1737303032290,-163.23,0.00019022,2]
[349572088,1737303032299,-163.23,0.00019034,2]
[349572089,1737303032309,-163.23,0.00019045,2]
[349572090,1737303032318,-163.23,0.00019057,2]
[349572091,1737303032327,-163.23,0.00019069,2]
[349572092,1737303032336,-1003.93110526,0.00019077,2]
[349572094,1737303032345,-555.0,0.00019078,2]
[349572096,1737303032355,-265.8519,0.00019078,2]
[349572098,1737303032364,-2659.52173831,0.00019078,2]
[349572100,1737303032379,-629.18379789,0.00019078,2]
[349572101,1737303032403,-426.07968251,0.00019078,2]
[349572102,1737303032415,-8350.88058129,0.00019078,2]
[349572103,1737303032425,-1377.0926,0.00019078,2]
[349572104,1737303032436,-1562.3109,0.00019078,2]
[349572105,1737303032445,-756.7208,0.00019078,2]
[349572106,1737303032455,-163.23,0.00019081,2]
[349572107,1737303032465,-224.64310056,0.00019173,2]
[349572108,1737303032475,-159.458,0.00019177,2]
[349572109,1737303032484,-1152.797,0.00019177,2]
[349572110,1737303032493,-500.0,0.00019178,2]
[349572111,1737303032503,-500.0,0.00019178,2]
[349572112,1737303032513,-500.0,0.00019178,2]
[349572113,1737303032522,-500.0,0.00019178,2]
[349572114,1737303032532,-500.0,0.00019178,2]
[349572115,1737303032542,-648.15,0.00019178,2]
[349572116,1737303032551,-500.0,0.00019178,2]
[349572117,1737303032560,-500.0,0.00019178,2]
[349572118,1737303032570,-500.0,0.00019178,2]
[349572119,1737303032579,-500.0,0.00019178,2]
[349572120,1737303032589,-500.0,0.00019178,2]
[349572121,1737303032598,-500.0,0.00019178,2]
[349572122,1737303032608,-500.0,0.00019178,2]
[349572123,1737303032618,-500.0,0.00019178,2]
[349572124,1737303032627,-500.0,0.00019178,2]
[349572125,1737303032637,-500.0,0.00019178,2]
[349572126,1737303032648,-500.0,0.00019178,2]
[349572127,1737303032658,-500.0,0.00019178,2]
[349572128,1737303032667,-500.0,0.00019178,2]
[349572130,1737303032676,-500.0,0.00019178,2]
[349572132,1737303032685,-500.0,0.00019178,2]
[349572134,1737303032694,-500.0,0.00019178,2]
[349572136,1737303032704,-470.15140412,0.00019178,2]
[349572138,1737303032713,-500.0,0.00019178,2]
[349572140,1737303032723,-500.0,0.00019178,2]
[349572142,1737303032732,-500.0,0.00019178,2]
[349572144,1737303032741,-500.0,0.00019178,2]
[349572145,1737303032751,-500.0,0.00019178,2]
[349572146,1737303032760,-500.0,0.00019178,2]
[349572147,1737303032769,-500.0,0.00019178,2]
[349572148,1737303032778,-500.0,0.00019178,2]
[349572149,1737303032787,-500.0,0.00019178,2]
[349572150,1737303032797,-500.0,0.00019178,2]
[349572151,1737303032808,-500.0,0.00019178,2]
[349572152,1737303032817,-500.0,0.00019178,2]
[349572153,1737303032826,-500.0,0.00019178,2]
[349572154,1737303032836,-500.0,0.00019178,2]
[349572155,1737303032845,-500.0,0.00019178,2]
[349572156,1737303032855,-500.0,0.00019178,2]
[349572157,1737303032865,-500.0,0.00019178,2]
[349572158,1737303032874,-562.5,0.00019178,2]
[349572159,1737303032885,-500.0,0.00019178,2]
[349572160,1737303032895,-500.0,0.00019178,2]
[349572161,1737303032905,-501.84,0.00019178,2]
[349572162,1737303032915,-500.0,0.00019178,2]
[349572163,1737303032925,-500.0,0.00019178,2]
[349572164,1737303032935,-500.0,0.00019178,2]
[349572165,1737303032945,-500.0,0.00019178,2]
[349572166,1737303032955,-500.0,0.00019178,2]
[349572167,1737303032965,-500.0,0.00019178,2]
[349572168,1737303032975,-500.0,0.00019178,2]
[349572169,1737303032989,-500.0,0.00019178,2]
[349572170,1737303032998,-500.0,0.00019178,2]
[349572171,1737303033009,-500.0,0.00019178,2]
[349572172,1737303033019,-514.03,0.00019178,2]
[349572173,1737303033030,-500.0,0.00019178,2]
[349572174,1737303033040,-500.0,0.00019178,2]
[349572175,1737303033050,-500.0,0.00019178,2]
[349572176,1737303033063,-500.0,0.00019178,2]
[349572177,1737303033073,-500.0,0.00019178,2]
[349572178,1737303033084,-500.0,0.0001919,2]
[349572179,1737303033095,-250.0,0.00019242,2]
[349572180,1737303033105,-1276.6750983,0.00019345,2]
[349572181,1737303033115,-931.64044088,0.0001935,2]
[349572182,1737303033125,-1009.77,0.00019351,2]
[349572183,1737303033135,-796.04904267,0.00019352,2]
[349572184,1737303033147,-21349.8693,0.00019352,2]
[349572185,1737303033158,-178.51795465,0.00019352,2]
[349572186,1737303033169,-425.5583661,0.00019354,2]
[349572187,1737303033179,-1276.6750983,0.00019365,2]
[349572188,1737303033190,-1276.6750983,0.00019383,2]
[349572189,1737303033201,-425.5583661,0.00019384,2]
[349572190,1737303033211,-425.5583661,0.00019384,2]
[349572191,1737303033222,-425.5583661,0.00019394,2]
[349572192,1737303033233,-931.64044088,0.00019406,2]
[349572193,1737303033243,-200.0,0.00019407,2]
[349572194,1737303033253,-200.0,0.0001941,2]
[349572195,1737303033263,-200.0,0.00019411,2]
[349572196,1737303033272,-425.5583661,0.00019412,2]
[349572197,1737303033283,-1276.6750983,0.0001945,2]
[349572198,1737303033293,-501.74191315,0.00019451,2]
[349572199,1737303033303,-452.56487938,0.00019452,2]
[349572200,1737303033313,-438.75,0.00019452,2]
[349572201,1737303033323,-500.0,0.00019452,2]
[349572202,1737303033333,-500.0,0.00019452,2]
[349572203,1737303033343,-500.0,0.00019452,2]
[349572204,1737303033352,-500.0,0.00019452,2]
[349572205,1737303033362,-500.0,0.00019452,2]
[349572206,1737303033373,-500.0,0.00019452,2]
[349572207,1737303033382,-500.0,0.00019452,2]
[349572208,1737303033392,-500.0,0.00019452,2]
[349572209,1737303033404,-500.0,0.00019452,2]
[349572210,1737303033414,-500.0,0.00019452,2]
[349572211,1737303033425,-500.0,0.00019452,2]
[349572212,1737303033435,-168.54,0.00019452,2]
[349572213,1737303033445,-500.0,0.00019452,2]
[349572214,1737303033455,-418.87,0.00019452,2]
[349572215,1737303033465,-500.0,0.00019452,2]
[349572216,1737303033475,-561.65,0.00019452,2]
[349572217,1737303033485,-511.43,0.00019452,2]
[349572218,1737303033495,-500.0,0.00019452,2]
[349572219,1737303033505,-500.0,0.00019452,2]
[349572220,1737303033516,-207.13,0.00019452,2]
[349572221,1737303033526,-377.27,0.00019452,2]
[349572222,1737303033537,-200.0,0.00019452,2]
[349572223,1737303033547,-200.0,0.00019471,2]
[349572224,1737303033557,-931.64044088,0.00019475,2]
[349572225,1737303033567,-200.0,0.0001948,2]
[349572226,1737303033577,-931.64044088,0.00019482,2]
[349572227,1737303033587,-1276.6750983,0.00019485,2]
[349572228,1737303033598,-200.0,0.00019489,2]
[349572229,1737303033608,-931.64044088,0.00019493,2]
[349572230,1737303033619,-796.04904258,0.00019524,2]
[349572231,1737303033629,-5183.4408341,0.00019559,2]
[349572232,1737303037665,-370.09420091,0.00019559,2]
[349572233,1737303037677,-5497.224858,0.00019559,2]
[349572234,1737303037690,-657.63927102,0.00019559,2]
[349572235,1737303037700,-945.8,0.00019611,2]
[349572236,1737303037711,-205.02067598,0.00019622,2]
[349572237,1737303037723,-19.97932402,0.00019622,2]
[349572238,1737303037733,-1724.29407525,0.00019625,2]
[349572239,1737303038026,-276.68869355,0.00019625,2]
[349572240,1737303038039,-2999.0172312,0.00019625,2]
[349572241,1737303038049,-796.04904258,0.00019696,2]
[349572242,1737303038062,-215.977581,0.00019724,2]
[349572243,1737303038072,-500.0,0.00019724,2]
[349572244,1737303038083,-500.0,0.00019724,2]
[349572245,1737303038092,-605.44,0.00019724,2]
[349572246,1737303038102,-402.077451,0.00019724,2]
[349572247,1737303038113,-974.87,0.00019724,2]
[349572248,1737303038124,-899.01,0.00019724,2]
[349572249,1737303038135,-500.0,0.00019724,2]
[349572251,1737303038145,-944.29,0.00019724,2]
[349572253,1737303038155,-1199.1,0.00019724,2]
[349572255,1737303038165,-500.0,0.00019724,2]
[349572257,1737303038175,-500.0,0.00019724,2]
[349572259,1737303038186,-500.0,0.00019724,2]
[349572261,1737303038196,-500.0,0.00019724,2]
[349572263,1737303038205,-1057.86,0.00019724,2]
[349572265,1737303038214,-519.09,0.00019724,2]
[349572267,1737303038224,-1110.23,0.00019724,2]
[349572269,1737303038234,-500.0,0.00019724,2]
[349572271,1737303038243,-500.0,0.00019724,2]
[349572274,1737303038253,-1005.93,0.00019724,2]
[349572276,1737303038262,-1602.28,0.00019724,2]
[349572278,1737303038273,-500.0,0.00019724,2]
[349572280,1737303038282,-500.0,0.00019724,2]
[349572283,1737303038292,-621.67,0.00019724,2]
[349572285,1737303038302,-2018.43,0.00019724,2]
[349572287,1737303038312,-500.0,0.00019724,2]
[349572288,1737303038322,-500.0,0.00019724,2]
[349572291,1737303038332,-500.0,0.00019724,2]
[349572292,1737303038343,-500.0,0.00019724,2]
[349572295,1737303038353,-500.0,0.00019724,2]
[349572297,1737303038363,-529.36,0.00019724,2]
[349572299,1737303038373,-500.0,0.00019724,2]
[349572301,1737303038383,-510.1,0.00019724,2]
[349572303,1737303038394,-500.0,0.00019724,2]
[349572305,1737303038406,-500.0,0.00019724,2]
[349572307,1737303038417,-1035.37,0.00019724,2]
[349572309,1737303038427,-500.0,0.00019724,2]
[349572311,1737303038439,-500.0,0.00019724,2]
[349572313,1737303038450,-2123.56,0.00019724,2]
[349572314,1737303038460,-500.0,0.00019724,2]
[349572315,1737303038471,-500.0,0.00019724,2]
[349572316,1737303038482,-61.60574203,0.00019724,2]
[349572317,1737303038495,-925.95425797,0.00019724,2]
[349572318,1737303038505,-725.37,0.00019724,2]
[349572319,1737303038515,-500.0,0.00019724,2]
[349572320,1737303038526,-500.0,0.00019724,2]
[349572321,1737303038536,-500.0,0.00019724,2]
[349572322,1737303038546,-500.0,0.00019724,2]
[349572323,1737303038556,-500.0,0.00019724,2]
[349572324,1737303038566,-986.3,0.00019724,2]
[349572325,1737303038578,-699.66614051,0.00019724,2]
[349572326,1737303038591,-244.85385949,0.00019724,2]
[349572327,1737303038601,-500.0,0.00019724,2]
[349572328,1737303038612,-567.83,0.00019724,2]
[349572329,1737303038623,-500.0,0.00019724,2]
[349572330,1737303038633,-500.0,0.00019724,2]
[349572331,1737303038644,-500.0,0.00019724,2]
[349572332,1737303038655,-500.0,0.00019724,2]
[349572333,1737303038666,-500.0,0.00019724,2]
[349572334,1737303038676,-500.0,0.00019724,2]
[349572335,1737303038686,-500.0,0.00019724,2]
[349572336,1737303038696,-500.0,0.00019725,2]
[349572337,1737303038706,-500.0,0.00019725,2]
[349572338,1737303038716,-500.0,0.00019725,2]
[349572339,1737303038727,-500.0,0.00019725,2]
[349572340,1737303038736,-500.0,0.00019725,2]
[349572341,1737303038747,-500.0,0.00019725,2]
[349572342,1737303038757,-502.38346633,0.00019725,2]
[349572343,1737303038767,-500.0,0.00019725,2]
[349572344,1737303038777,-935.14,0.00019725,2]
[349572345,1737303038788,-500.0,0.00019725,2]
[349572346,1737303038798,-263.64319357,0.00019725,2]
[349572347,1737303038811,-236.35680643,0.00019725,2]
[349572348,1737303038821,-500.0,0.00019725,2]
[349572349,1737303038831,-269.0265261,0.00019725,2]
[349572353,1737303039861,-2500.0,0.00019625,2]
[349572354,1737303039871,-246.87975232,0.00019723,2]
[349572355,1737303039881,-230.9734739,0.00019725,2]
[349572356,1737303039892,-500.0,0.00019725,2]
[349572357,1737303039903,-500.0,0.00019725,2]
[349572358,1737303039913,-500.0,0.00019725,2]
[349572359,1737303039922,-500.0,0.00019725,2]
[349572360,1737303039931,-500.0,0.00019725,2]
[349572361,1737303039940,-500.0,0.00019725,2]
[349572362,1737303039950,-500.0,0.00019725,2]
[349572363,1737303039959,-501.55883974,0.00019725,2]
[349572364,1737303039969,-500.0,0.00019725,2]
[349572365,1737303039982,-500.0,0.00019725,2]
[349572366,1737303039991,-501.26898816,0.00019725,2]
[349572367,1737303040000,-500.0,0.00019725,2]
[349572368,1737303040010,-500.0,0.00019725,2]
[349572369,1737303040021,-505.29197879,0.00019725,2]
[349572370,1737303040032,-500.0,0.00019725,2]
[349572371,1737303040041,-500.0,0.00019725,2]
[349572372,1737303040051,-500.0,0.00019725,2]
[349572373,1737303040061,-500.0,0.00019725,2]
[349572374,1737303040071,-500.86037132,0.00019725,2]
[349572375,1737303040080,-500.0,0.00019725,2]
[349572376,1737303040089,-500.0,0.00019725,2]
[349572377,1737303040099,-500.0,0.00019725,2]
[349572378,1737303040109,-500.0,0.00019725,2]
[349572379,1737303040119,-1200.21,0.00019725,2]
[349572380,1737303040128,-500.0,0.00019725,2]
[349572381,1737303040138,-500.0,0.00019725,2]
[349572382,1737303040148,-500.0,0.00019725,2]
[349572383,1737303040158,-500.0,0.00019725,2]
[349572384,1737303040167,-500.0,0.00019725,2]
[349572385,1737303040177,-500.0,0.00019725,2]
[349572386,1737303040186,-500.0,0.00019725,2]
[349572387,1737303040196,-500.0,0.00019725,2]
[349572388,1737303040206,-500.0,0.00019725,2]
[349572389,1737303040216,-500.5549151,0.00019725,2]
[349572390,1737303040226,-500.0,0.00019725,2]
[349572391,1737303040235,-500.0,0.00019725,2]
[349572392,1737303040245,-500.0,0.00019725,2]
[349572393,1737303040255,-500.0,0.00019725,2]
[349572394,1737303040265,-500.80078046,0.00019725,2]
[349572395,1737303040274,-500.0,0.00019725,2]
[349572396,1737303040284,-500.0,0.00019725,2]
[349572397,1737303040293,-500.0,0.00019725,2]
[349572398,1737303040303,-500.0,0.00019725,2]
[349572399,1737303040312,-500.0,0.00019725,2]
[349572400,1737303040322,-500.0,0.00019725,2]
[349572401,1737303040333,-500.0,0.00019725,2]
[349572402,1737303040342,-500.0,0.00019725,2]
[349572403,1737303040352,-500.0,0.00019725,2]
[349572404,1737303040361,-500.0,0.00019725,2]
[349572405,1737303040370,-500.91694964,0.00019725,2]
[349572406,1737303040380,-500.0,0.00019725,2]
[349572407,1737303040389,-500.0,0.00019725,2]
[349572408,1737303040399,-500.0,0.00019725,2]
[349572409,1737303040409,-500.0,0.00019725,2]
[349572410,1737303040418,-500.0,0.00019725,2]
[349572411,1737303040428,-500.0,0.00019725,2]
[349572412,1737303040438,-500.0,0.00019725,2]
[349572413,1737303040447,-500.0,0.00019725,2]
[349572414,1737303040457,-500.0,0.00019725,2]
[349572415,1737303040466,-500.48261642,0.00019725,2]
[349572416,1737303040476,-500.0,0.00019725,2]
[349572417,1737303040485,-500.0,0.00019725,2]
[349572418,1737303040495,-502.02596641,0.00019725,2]
[349572419,1737303040506,-500.0,0.00019725,2]
[349572421,1737303040515,-500.0,0.00019725,2]
[349572423,1737303040526,-500.30481047,0.00019725,2]
[349572425,1737303040536,-500.0,0.00019725,2]
[349572427,1737303040545,-500.0,0.00019725,2]
[349572429,1737303040555,-500.0,0.00019725,2]
[349572431,1737303040565,-500.0,0.00019725,2]
[349572433,1737303040575,-500.0,0.00019725,2]
[349572435,1737303040584,-500.82902876,0.00019725,2]
[349572437,1737303040594,-500.0,0.00019725,2]
[349572439,1737303040603,-500.0,0.00019725,2]
[349572440,1737303040612,-501.30227619,0.00019725,2]
[349572441,1737303040621,-500.0,0.00019725,2]
[349572442,1737303040631,-500.0,0.00019725,2]
[349572443,1737303040641,-500.20843444,0.00019725,2]
[349572444,1737303040653,-500.0,0.00019725,2]
[349572445,1737303040663,-501.27392342,0.00019725,2]
[349572446,1737303040673,-500.0,0.00019725,2]
[349572447,1737303040682,-500.0,0.00019725,2]
[349572448,1737303040691,-492.20619642,0.00019725,2]
[349572449,1737303040701,-500.0,0.00019725,2]
[349572450,1737303040711,-500.62312088,0.00019725,2]
[349572451,1737303040720,-500.0,0.00019725,2]
[349572452,1737303040729,-262.30433062,0.00019725,2]
[349572453,1737303040739,-500.0,0.00019725,2]
[349572454,1737303040749,-500.0,0.00019725,2]
[349572455,1737303040758,-500.0,0.00019725,2]
[349572456,1737303040767,-500.0,0.00019725,2]
[349572457,1737303040777,-500.0,0.00019725,2]
[349572458,1737303040786,-500.0,0.00019725,2]
[349572459,1737303040796,-500.0,0.00019725,2]
[349572460,1737303040806,-500.0,0.00019725,2]
[349572461,1737303040815,-500.0,0.00019725,2]
[349572462,1737303040825,-500.0,0.00019725,2]
[349572463,1737303040834,-500.0,0.00019725,2]
[349572464,1737303040844,-500.0,0.00019725,2]
[349572465,1737303040853,-500.0,0.00019725,2]
[349572466,1737303040862,-500.0,0.00019725,2]
[349572467,1737303040872,-500.0,0.00019725,2]
[349572468,1737303040881,-500.0,0.00019725,2]
[349572469,1737303040891,-500.0,0.00019725,2]
[349572470,1737303040900,-500.0,0.00019725,2]
[349572471,1737303040910,-500.0,0.00019725,2]
[349572472,1737303040920,-500.0,0.00019725,2]
[349572473,1737303040930,-500.0,0.00019725,2]
[349572474,1737303040939,-500.0,0.00019725,2]
[349572475,1737303040948,-500.0,0.00019725,2]
[349572476,1737303040958,-500.0,0.00019725,2]
[349572477,1737303040967,-500.0,0.00019725,2]
[349572478,1737303040979,-500.0,0.00019725,2]
[349572479,1737303040989,-500.0,0.00019725,2]
[349572480,1737303040998,-500.0,0.00019725,2]
[349572481,1737303041007,-500.0,0.00019725,2]
[349572482,1737303041017,-500.0,0.00019725,2]
[349572483,1737303041027,-500.0,0.00019725,2]
[349572484,1737303041036,-500.0,0.00019725,2]
[349572485,1737303041045,-500.0,0.00019725,2]
[349572486,1737303041055,-500.0,0.00019725,2]
[349572487,1737303041065,-500.0,0.00019725,2]
[349572488,1737303041074,-500.0,0.00019725,2]
[349572489,1737303041084,-500.0,0.00019725,2]
[349572490,1737303041093,-578.66,0.00019725,2]
[349572491,1737303041103,-500.0,0.00019725,2]
[349572492,1737303041112,-500.0,0.00019725,2]
[349572493,1737303041122,-500.0,0.00019725,2]
[349572494,1737303041131,-500.0,0.00019725,2]
[349572495,1737303041140,-500.0,0.00019725,2]
[349572496,1737303041149,-500.0,0.00019725,2]
[349572497,1737303041160,-580.64,0.00019725,2]
[349572498,1737303041170,-500.0,0.00019725,2]
[349572499,1737303041179,-500.0,0.00019725,2]
[349572500,1737303041188,-500.0,0.00019725,2]
[349572501,1737303041197,-500.0,0.00019725,2]
[349572502,1737303041207,-238.54191946,0.00019725,2]
[349572503,1737303041215,-500.0,0.00019725,2]
[349572504,1737303041225,-500.0,0.00019725,2]
[349572505,1737303041234,-500.0,0.00019725,2]
[349572506,1737303041243,-500.0,0.00019725,2]
[349572507,1737303041252,-500.0,0.00019725,2]
[349572508,1737303041262,-500.0,0.00019725,2]
[349572509,1737303041271,-500.0,0.00019725,2]
[349572510,1737303041280,-500.0,0.00019725,2]
[349572511,1737303041290,-500.0,0.00019725,2]
[349572512,1737303041299,-500.0,0.00019725,2]
[349572513,1737303041308,-500.0,0.00019725,2]
[349572514,1737303041317,-500.0,0.00019725,2]
[349572515,1737303041327,-500.0,0.00019725,2]
[349572516,1737303041336,-562.5,0.00019725,2]
[349572517,1737303041345,-500.0,0.00019725,2]
[349572518,1737303041355,-500.0,0.00019725,2]
[349572519,1737303041364,-500.0,0.00019725,2]
[349572520,1737303041373,-489.58989386,0.00019725,2]
[349572521,1737303041383,-500.0,0.00019725,2]
[349572522,1737303041392,-500.0,0.00019725,2]
[349572523,1737303041402,-500.0,0.00019725,2]
[349572524,1737303041411,-500.0,0.00019725,2]
[349572525,1737303041420,-500.0,0.00019725,2]
[349572526,1737303041430,-500.0,0.00019725,2]
[349572527,1737303041439,-237.5522444,0.00019725,2]
[349572528,1737303041449,-500.0,0.00019725,2]
[349572529,1737303041458,-500.0,0.00019725,2]
[349572530,1737303041467,-500.0,0.00019725,2]
[349572531,1737303041477,-500.0,0.00019725,2]
[349572532,1737303041486,-500.0,0.00019725,2]
[349572533,1737303041495,-500.0,0.00019725,2]
[349572534,1737303041504,-500.0,0.00019725,2]
[349572535,1737303041514,-500.0,0.00019725,2]
[349572536,1737303041523,-500.0,0.00019725,2]
[349572537,1737303041532,-509.55,0.00019725,2]
[349572538,1737303041542,-500.0,0.00019725,2]
[349572539,1737303041551,-500.0,0.00019725,2]
[349572540,1737303041560,-500.0,0.00019725,2]
[349572541,1737303041570,-500.0,0.00019725,2]
[349572542,1737303041579,-500.0,0.00019725,2]
[349572543,1737303041588,-500.0,0.00019725,2]
[349572544,1737303041597,-500.0,0.00019725,2]
[349572545,1737303041607,-500.0,0.00019725,2]
[349572546,1737303041616,-500.0,0.00019725,2]
[349572547,1737303041625,-500.0,0.00019725,2]
[349572548,1737303041634,-500.0,0.00019725,2]
[349572549,1737303041643,-500.0,0.00019725,2]
[349572550,1737303041655,-500.0,0.00019725,2]
[349572551,1737303041666,-500.0,0.00019725,2]
[349572552,1737303041675,-576.43613289,0.00019725,2]
[349572553,1737303041685,-500.0,0.00019725,2]
[349572554,1737303041694,-500.0,0.00019725,2]
[349572555,1737303041703,-500.0,0.00019725,2]
[349572556,1737303041712,-500.0,0.00019725,2]
[349572557,1737303041721,-504.19980052,0.00019725,2]
[349572558,1737303041731,-500.0,0.00019725,2]
[349572559,1737303041741,-500.0,0.00019725,2]
[349572560,1737303041750,-675.49,0.00019725,2]
[349572561,1737303041760,-500.0,0.00019725,2]
[349572562,1737303041770,-500.0,0.00019725,2]
[349572563,1737303041779,-500.0,0.00019725,2]
[349572564,1737303041788,-500.0,0.00019725,2]
[349572565,1737303041797,-500.0,0.00019725,2]
[349572566,1737303041806,-500.0,0.00019725,2]
[349572567,1737303041815,-500.0,0.00019725,2]
[349572568,1737303041826,-559.42,0.00019725,2]
[349572569,1737303041835,-500.0,0.00019725,2]
[349572570,1737303041844,-500.0,0.00019725,2]
[349572571,1737303041853,-500.0,0.00019725,2]
[349572572,1737303041863,-500.0,0.00019725,2]
[349572573,1737303041872,-500.0,0.00019725,2]
[349572574,1737303041882,-500.0,0.00019725,2]
[349572575,1737303041892,-500.0,0.00019725,2]
[349572576,1737303041904,-514.41,0.00019725,2]
[349572577,1737303041913,-500.0,0.00019725,2]
[349572578,1737303041923,-500.0,0.00019725,2]
[349572579,1737303041932,-500.0,0.00019725,2]
[349572580,1737303041942,-203.45728543,0.00019725,2]
[349572581,1737303041951,-500.0,0.00019725,2]
[349572582,1737303041972,-500.0,0.00019725,2]
[349572583,1737303042067,-500.0,0.00019725,2]
[349572584,1737303042077,-500.0,0.00019725,2]
[349572585,1737303042086,-500.0,0.00019725,2]